bitfinex/quotes_SOLUSD_20240925
["timestamp","ask_amount","ask_price","bid_price","bid_amount"]
[1727271560655,7.5728664,150.37,150.32,0.2424478]
[1727271560823,0.9226664,150.36,150.32,6.8945478]
[1727271561027,6.6507,150.36,150.32,6.8945478]
[1727271561570,6.6503,150.37,150.32,6.8945478]
[1727271562054,20.0,150.37,150.35,6.6511]
[1727271562755,26.649,150.4,150.35,6.6511]
[1727271562939,20.0,150.44,150.37,6.6499]
[1727271563144,6.6483,150.42,150.37,6.6499]
[1727271563764,6.6483,150.42,150.38,6.6498]
[1727271564065,6.92446002,150.43,150.39,6.6493]
[1727271564240,16.3528,150.46,150.35,27.19704995]
[1727271564560,16.3528,150.46,150.4,6.6485]
[1727271564735,6.6472,150.44,150.4,6.6485]
[1727271565676,0.9226664,150.43,150.36,16.6265]
[1727271565846,37.5395664,150.45,150.37,6.6499]
[1727271566166,23.776884,150.44,150.37,6.6499]
[1727271566371,20.0,150.43,150.37,6.6499]
[1727271566571,23.776884,150.44,150.36,16.6265]
[1727271566772,20.0,150.43,150.38,6.6497]
[1727271566944,0.9226664,150.42,150.38,6.6497]
[1727271567365,20.0,150.43,150.36,16.6265]
[1727271567560,6.6482,150.42,150.37,6.65]
[1727271569245,26.6476,150.43,150.38,6.6494]
[1727271569563,20.0,150.45,150.39,6.6492]
[1727271569769,20.0,150.43,150.39,6.6492]
[1727271569945,20.0,150.43,150.38,16.6239]
[1727271570141,20.0,150.43,150.4,6.6485]
[1727271570769,20.0,150.43,150.38,16.6239]
[1727271570969,20.0,150.43,150.39,6.6492]
[1727271571576,6.6483,150.42,150.38,16.6239]
[1727271571776,6.6483,150.42,150.38,23.2735]
[1727271572158,6.6476,150.43,150.38,23.2735]
[1727271572359,20.0,150.42,150.38,23.2735]
[1727271573095,0.9226664,150.41,150.35,16.3002]
[1727271573263,6.649,150.4,150.36,6.6506]
[1727271573586,0.9226664,150.39,150.35,39.5787]
[1727271573759,7.5721664,150.39,150.35,39.5787]
[1727271573960,7.5725664,150.38,150.34,6.3197]
[1727271574161,0.9226664,150.37,150.34,6.3197]
[1727271574365,6.6499,150.38,150.34,6.3197]
[1727271575287,16.6209,150.42,150.34,12.9711]
[1727271575458,6.6494,150.39,150.34,12.9711]
[1727271575652,0.9226664,150.38,150.35,6.6511]
[1727271576054,0.9226664,150.38,150.34,29.5995]
[1727271576363,6.6498,150.38,150.34,29.5995]
[1727271576668,20.0,150.4,150.35,6.6508]
[1727271576873,26.649,150.4,150.35,6.6508]
[1727271577185,20.0,150.4,150.36,6.6505]
[1727271579192,20.0,150.42,150.38,6.6497]
[1727271579484,6.6481,150.42,150.38,6.6497]
[1727271579654,20.0,150.41,150.38,6.6497]
[1727271579855,20.9226664,150.41,150.36,16.626]
[1727271580072,20.9226664,150.41,150.37,6.6501]
[1727271580267,20.0,150.41,150.37,6.6501]
[1727271580676,20.0,150.41,150.38,6.6497]
[1727271580870,20.0,150.42,150.38,6.6497]
[1727271582189,6.6477,150.43,150.38,23.2734]
[1727271582394,0.9226664,150.42,150.38,23.2734]
[1727271582880,6.6481,150.42,150.38,16.6238]
[1727271584790,6.6485,150.41,150.37,6.6501]
[1727271585394,26.6481,150.42,150.37,6.6501]
[1727271585969,26.6481,150.42,150.38,6.6498]
[1727271586874,7.5711664,150.41,150.37,6.6501]
[1727271587089,6.6485,150.41,150.37,6.6501]
[1727271587287,26.6482,150.42,150.37,6.6501]
[1727271587482,20.0,150.43,150.39,6.6489]
[1727271587672,0.9226664,150.42,150.39,6.6489]
[1727271587876,20.9226664,150.42,150.38,23.2738]
[1727271588280,27.5707664,150.42,150.38,23.2738]
[1727271588481,26.6481,150.42,150.38,23.2738]
[1727271589295,20.0,150.45,150.38,16.6242]
[1727271589502,20.0,150.42,150.38,23.2738]
[1727271589804,20.9226664,150.42,150.38,16.6242]
[1727271589988,6.6485,150.41,150.38,16.6242]
[1727271590396,7.5717664,150.4,150.36,22.6918]
[1727271590895,0.9226664,150.4,150.36,16.0412]
[1727271591078,0.9226664,150.4,150.35,16.6273]
[1727271591079,6.6495,150.39,150.35,16.6273]
[1727271591283,0.9226664,150.38,150.35,16.6273]
[1727271591474,0.9226664,150.38,150.35,23.2784]
[1727271591888,6.6495,150.39,150.35,23.2784]
[1727271592895,6.649,150.4,150.35,16.6273]
[1727271593212,6.649,150.4,150.36,6.6506]
[1727271596010,20.0,150.41,150.35,16.6273]
[1727271596192,20.0,150.41,150.37,6.6499]
[1727271596391,20.0,150.41,150.37,16.6251]
[1727271596598,20.0,150.42,150.37,16.6251]
[1727271596789,26.6481,150.42,150.38,6.6497]
[1727271597107,7.5711664,150.41,150.37,23.2753]
[1727271597299,6.649,150.4,150.37,16.6251]
[1727271598211,6.6485,150.41,150.37,23.2753]
[1727271598718,20.0,150.41,150.38,6.6497]
[1727271600698,26.6477,150.43,150.39,6.6492]
[1727271601012,6.6472,150.44,150.4,6.6488]
[1727271601219,6.92590586,150.46,150.39,23.2722]
[1727271601220,27.5702664,150.43,150.39,23.2722]
[1727271601412,20.9226664,150.43,150.36,33.0658]
[1727271601593,20.9226664,150.43,150.27,16.4397]
[1727271601594,43.776884,150.38,150.27,16.4397]
[1727271601797,85.0431,150.41,150.29,6.6537]
[1727271601798,20.0,150.35,150.29,6.6537]
[1727271602007,26.6515,150.35,150.28,7.0747093]
[1727271602395,6.6519,150.34,150.29,6.6536]
[1727271602594,6.6519,150.34,150.29,7.98414235]
[1727271603218,20.0,150.35,150.29,6.6536]
[1727271603395,6.652,150.33,150.28,7.0750093]
[1727271603601,6.652,150.33,150.28,0.4209093]
[1727271604003,50.428884,150.33,150.28,0.4209093]
[1727271605217,26.652,150.33,150.28,0.4209093]
[1727271605815,50.428884,150.33,150.28,0.4209093]
[1727271606807,6.6538,150.29,150.28,0.4209093]
[1727271607105,50.430684,150.29,150.28,0.4209093]
[1727271608530,26.6538,150.29,150.28,0.4209093]
[1727271608824,20.0,150.29,150.28,0.4209093]
[1727271610535,6.6528,150.32,150.28,0.4209093]
[1727271611223,16.3369664,150.35,150.28,0.4209093]
[1727271611425,6.6526,150.32,150.28,0.4209093]
[1727271611815,20.0,150.31,150.28,0.4209093]
[1727271612009,20.0,150.33,150.28,0.4209093]
[1727271612214,0.9226664,150.32,150.28,0.4209093]
[1727271612927,6.6538,150.29,150.28,0.4209093]
[1727271615443,51.3533504,150.29,150.28,0.4209093]
[1727271617026,50.430684,150.29,150.28,0.4209093]
[1727271619535,20.0,150.29,150.28,0.4209093]
[1727271620637,26.6538,150.29,150.28,0.4209093]
[1727271620821,27.5764664,150.29,150.28,0.4209093]
[1727271621027,50.430684,150.29,150.28,0.4209093]
[1727271625347,57.35968176,150.29,150.28,0.4209093]
[1727271626728,50.430684,150.29,150.28,0.4209093]
[1727271628427,30.430684,150.29,150.28,0.4209093]
[1727271628627,50.430684,150.29,150.28,0.4209093]
[1727271629748,14.73689342,150.32,150.28,0.4209093]
[1727271629954,6.653,150.31,150.28,0.4209093]
[1727271630635,0.9226664,150.3,150.28,0.4209093]
[1727271632235,6.6535,150.3,150.28,0.4209093]
[1727271632431,7.5764664,150.29,150.28,0.4209093]
[1727271633532,51.3533504,150.29,150.28,0.4209093]
[1727271634146,67.0561504,150.29,150.28,0.4209093]
[1727271639054,73.97989956,150.29,150.28,0.4209093]
[1727271640325,73.05723316,150.29,150.28,0.4209093]
[1727271641833,6.656,150.24,150.23,0.2424478]
[1727271642035,50.432884,150.24,150.23,0.2424478]
[1727271642556,50.432884,150.24,150.2,0.0333]
[1727271642557,26.6573,150.21,150.2,0.0333]
[1727271642762,27.5799664,150.21,150.2,0.0333]
[1727271643065,51.3568504,150.21,150.2,0.0333]
[1727271643231,51.3568504,150.21,150.19,0.3288093]
[1727271643232,43.776884,150.2,150.19,0.3288093]
[1727271644133,44.6995504,150.2,150.19,0.3288093]
[1727271644338,43.776884,150.2,150.19,0.3288093]
[1727271644533,23.776884,150.2,150.19,0.3288093]
[1727271644751,50.0,150.27,150.19,0.3288093]
[1727271645068,23.776884,150.26,150.19,0.3288093]
[1727271645254,50.0,150.27,150.19,17.37711289]
[1727271645642,16.2584,150.28,150.19,17.37711289]
[1727271645958,6.92374916,150.29,150.19,18.70643529]
[1727271646143,6.92374916,150.29,150.23,16.6643]
[1727271646349,0.9226664,150.31,150.23,16.6643]
[1727271646548,6.9211669,150.29,150.23,16.6643]
[1727271646752,6.9211669,150.29,150.24,6.6558]
[1727271647066,1.39882299,150.35,150.26,6.4937]
[1727271647356,6.9208945,150.33,150.26,6.4937]
[1727271647742,0.9226664,150.32,150.26,6.4937]
[1727271647943,0.9226664,150.31,150.27,15.5653]
[1727271648265,0.9226664,150.3,150.27,22.2198]
[1727271648445,1.1651142,150.35,150.27,22.2198]
[1727271648655,6.91842337,150.34,150.27,22.2198]
[1727271648849,0.9226664,150.33,150.27,22.2198]
[1727271649045,0.2424478,150.35,150.27,22.2198]
[1727271649244,0.9226664,150.34,150.27,22.2198]
[1727271649454,20.9226664,150.34,150.27,15.5653]
[1727271649650,20.0,150.33,150.27,15.5653]
[1727271649959,0.9226664,150.32,150.27,15.5653]
[1727271650370,19.5,150.3,150.27,15.5653]
[1727271650561,19.5,150.3,150.26,6.4937]
[1727271650562,0.9226664,150.29,150.26,6.4937]
[1727271651067,19.55305048,150.3,150.26,6.4937]
[1727271651362,20.47571688,150.3,150.26,6.4937]
[1727271652867,20.4226664,150.3,150.26,6.4937]
[1727271653443,20.4226664,150.3,150.23,16.1166]
[1727271653642,27.0761664,150.3,150.23,16.1166]
[1727271653872,20.4226664,150.3,150.23,16.1166]
[1727271654169,20.4226664,150.3,150.23,22.7729]
[1727271654360,20.4226664,150.3,150.23,16.1166]
[1727271654361,19.5,150.3,150.23,16.1166]
[1727271654572,19.5,150.3,150.25,6.6554]
[1727271654752,19.5,150.3,150.27,6.6545]
[1727271654954,0.17598408,150.33,150.25,23.293]
[1727271655160,0.17598408,150.33,150.26,6.655]
[1727271655775,0.17598408,150.33,150.27,6.6545]
[1727271655983,0.9226664,150.32,150.28,6.1737]
[1727271656486,0.9226664,150.32,150.28,12.8278]
[1727271656651,0.9226664,150.31,150.28,12.8278]
[1727271657364,0.9226664,150.31,150.28,6.1737]
[1727271658960,0.9226664,150.3,150.28,6.1737]
[1727271659257,0.9226664,150.32,150.28,6.1737]
[1727271660362,20.0,150.31,150.28,6.1737]
[1727271660563,26.6533,150.31,150.25,16.6378]
[1727271660778,20.0,150.31,150.26,6.655]
[1727271661381,20.17598408,150.33,150.27,6.6545]
[1727271661876,23.95286808,150.33,150.27,6.6545]
[1727271662059,20.0,150.32,150.27,6.6545]
[1727271662267,26.6525,150.32,150.27,6.6545]
[1727271662477,26.6525,150.32,150.26,6.655]
[1727271662780,0.9226664,150.31,150.25,16.6378]
[1727271662953,20.0,150.32,150.27,6.6545]
[1727271663395,20.0,150.32,150.25,23.2929]
[1727271663686,6.6529,150.31,150.25,23.2929]
[1727271663880,6.6535,150.3,150.25,16.6378]
[1727271664057,20.0,150.32,150.24,12.764]
[1727271664256,20.0,150.29,150.25,6.6555]
[1727271664983,6.6542,150.28,150.24,6.1081]
[1727271665187,0.9226664,150.28,150.24,6.1081]
[1727271665567,6.6532,150.31,150.24,12.7637]
[1727271665878,20.0,150.3,150.24,6.1081]
[1727271666059,6.6538,150.29,150.24,12.764]
[1727271666381,0.9226664,150.28,150.24,6.1081]
[1727271667177,26.6533,150.3,150.25,6.6555]
[1727271667485,20.0,150.3,150.25,6.6555]
[1727271667659,0.9226664,150.29,150.25,6.6555]
[1727271667870,0.9226664,150.28,150.25,6.6555]
[1727271668177,6.6528,150.32,150.26,6.6548]
[1727271668479,20.9226664,150.31,150.27,6.6546]
[1727271668690,27.5755664,150.31,150.25,6.6552]
[1727271670968,6.6534,150.3,150.25,6.6552]
[1727271671171,0.9226664,150.29,150.26,6.655]
[1727271671865,0.9226664,150.29,150.24,22.7472]
[1727271672088,7.5768664,150.29,150.24,22.7472]
[1727271672377,6.6542,150.29,150.24,29.4032]
[1727271672691,6.653,150.31,150.26,6.6551]
[1727271672888,20.9226664,150.3,150.26,6.6551]
[1727271673190,20.9226664,150.3,150.25,6.6554]
[1727271673385,27.5760664,150.3,150.25,6.6554]
[1727271673884,0.9226664,150.29,150.25,6.6554]
[1727271675001,7.5764664,150.29,150.24,22.7472]
[1727271675296,6.6542,150.28,150.24,22.7472]
[1727271675699,0.9226664,150.27,150.24,22.7472]
[1727271676083,6.6537,150.3,150.24,29.4031]
[1727271676300,6.6542,150.28,150.24,6.1081]
[1727271676593,0.9226664,150.27,150.24,6.1081]
[1727271677178,6.6546,150.28,150.24,6.1081]
[1727271677375,20.0,150.28,150.23,16.1166]
[1727271677594,20.0,150.26,150.2,6.57176115]
[1727271677774,1.15543083,150.31,150.2,6.57176115]
[1727271677969,23.776884,150.3,150.2,6.57176115]
[1727271678200,20.0,150.29,150.24,6.6557]
[1727271678696,0.9226664,150.28,150.24,6.6557]
[1727271679376,21.15497268,150.3,150.22,16.6422]
[1727271679571,0.9226664,150.29,150.25,6.6551]
[1727271679793,0.9226664,150.29,150.22,16.6422]
[1727271680001,0.9226664,150.29,150.24,6.656]
[1727271680593,0.9226664,150.29,150.25,6.6553]
[1727271680795,7.5764664,150.29,150.24,6.6559]
[1727271681004,0.9226664,150.29,150.24,6.6559]
[1727271681784,20.0,150.3,150.25,6.6554]
[1727271682102,20.0,150.3,150.26,6.655]
[1727271682903,20.0,150.31,150.27,6.6546]
[1727271683203,7.5757664,150.31,150.26,6.4022]
[1727271683783,6.6531,150.31,150.26,6.4022]
[1727271684198,6.6533,150.3,150.26,6.4022]
[1727271684403,6.6539,150.29,150.24,16.6391]
[1727271684600,6.6539,150.29,150.24,23.2949]
[1727271684780,26.653,150.31,150.26,6.6551]
[1727271685282,20.0,150.31,150.27,6.6546]
[1727271685507,20.17598408,150.33,150.28,6.6539]
[1727271685710,20.17598408,150.33,150.27,23.0383]
[1727271685898,7.5752664,150.32,150.27,23.0383]
[1727271686291,6.6526,150.32,150.27,29.6928]
[1727271686818,20.17598408,150.33,150.27,23.0383]
[1727271687228,6.6529,150.31,150.27,6.4022]
[1727271690491,6.6525,150.32,150.27,13.0568]
[1727271690891,20.17598408,150.33,150.22,16.6423]
[1727271691091,20.17598408,150.33,150.23,6.6564]
[1727271691092,6.6543,150.28,150.23,6.6564]
[1727271691910,6.6543,150.28,150.22,16.6423]
[1727271691911,6.6551,150.26,150.22,16.6423]
[1727271692117,6.6548,150.27,150.22,23.2991]
[1727271693017,20.0,150.31,150.22,17.97355033]
[1727271693227,20.0,150.28,150.24,6.6559]
[1727271693605,6.6543,150.28,150.24,6.6559]
[1727271693806,6.6543,150.28,150.22,16.6423]
[1727271694030,0.9226664,150.27,150.22,16.6423]
[1727271694229,6.6547,150.27,150.22,23.2991]
[1727271694711,6.6551,150.26,150.22,23.2991]
[1727271694914,20.0,150.28,150.22,23.2991]
[1727271695128,20.0,150.3,150.23,6.6564]
[1727271695334,6.6543,150.28,150.23,6.6564]
[1727271698338,0.9226664,150.27,150.23,6.6564]
[1727271698917,6.6543,150.28,150.23,6.6564]
[1727271699841,13.58150838,150.31,150.26,6.6549]
[1727271700138,6.6534,150.3,150.25,23.2936]
[1727271700338,6.6534,150.3,150.26,6.655]
[1727271700516,0.17598408,150.33,150.26,6.655]
[1727271700837,6.6525,150.32,150.27,6.3099]
[1727271701010,6.6525,150.32,150.28,6.6542]
[1727271701417,6.6525,150.32,150.27,6.3099]
[1727271701634,26.82798408,150.33,150.28,6.6542]
[1727271702740,0.9226664,150.32,150.28,6.6542]
[1727271702917,26.82798408,150.33,150.28,6.6542]
[1727271703620,26.82798408,150.33,150.28,22.7534]
[1727271704517,20.17598408,150.33,150.29,6.6537]
[1727271704728,0.17598408,150.33,150.29,6.6537]
[1727271705039,0.17598408,150.33,150.3,6.6533]
[1727271705433,0.17598408,150.33,150.31,6.6527]
[1727271705740,0.17598408,150.33,150.3,1.33052752]
[1727271705914,0.17598408,150.33,150.32,6.6524]
[1727271706113,0.17598408,150.33,150.32,23.55328114]
[1727271706644,0.17598408,150.33,150.32,22.2231]
[1727271707140,0.17598408,150.33,150.32,45.999984]
[1727271707640,0.17598408,150.33,150.32,22.2231]
[1727271708621,0.17598408,150.33,150.32,15.5707]
[1727271708940,0.17598408,150.33,150.31,6.3453]
[1727271709146,0.17598408,150.33,150.28,15.1594]
[1727271709445,6.82818408,150.33,150.28,21.8136]
[1727271709628,0.9226664,150.32,150.28,21.8136]
[1727271710536,0.9226664,150.32,150.26,29.8188]
[1727271710715,0.9226664,150.32,150.26,23.1641]
[1727271710716,6.6533,150.31,150.26,23.1641]
[1727271710916,0.17598408,150.33,150.26,23.1641]
[1727271710917,0.9226664,150.3,150.26,23.1641]
[1727271711118,0.17598408,150.33,150.26,23.1641]
[1727271711330,20.17598408,150.33,150.26,23.1641]
[1727271711834,20.17598408,150.33,150.26,6.5266]
[1727271712039,6.6538,150.29,150.26,6.5266]
[1727271712830,7.5769664,150.28,150.24,16.3254]
[1727271713041,6.6543,150.28,150.24,16.3254]
[1727271714021,7.5773664,150.27,150.24,16.3254]
[1727271714348,6.6547,150.27,150.24,16.3254]
[1727271714549,1.04760608,150.32,150.24,16.3254]
[1727271714738,6.6547,150.27,150.24,16.3254]
[1727271715044,0.9226664,150.26,150.24,16.3254]
[1727271715429,0.9226664,150.26,150.22,12.6892]
[1727271715823,6.656,150.25,150.22,6.0324]
[1727271716745,6.6548,150.27,150.22,12.6892]
[1727271717949,6.6548,150.27,150.22,6.0324]
[1727271718151,6.6548,150.27,150.22,12.6892]
[1727271718651,20.0,150.27,150.22,12.6892]
[1727271720325,6.6547,150.27,150.22,12.6892]
[1727271720526,6.6555,150.25,150.22,6.0324]
[1727271721049,20.0,150.3,150.22,6.0324]
[1727271721363,6.6547,150.27,150.22,12.6892]
[1727271722140,6.6547,150.27,150.23,6.6564]
[1727271722458,6.6547,150.27,150.22,12.6892]
[1727271722759,26.6547,150.27,150.23,6.6564]
[1727271722951,0.9226664,150.26,150.22,6.0324]
[1727271723249,20.0,150.29,150.22,6.0324]
[1727271724152,6.6547,150.27,150.22,6.0324]
[1727271724529,6.6547,150.27,150.22,12.6892]
[1727271724758,6.6547,150.27,150.23,6.6564]
[1727271725746,6.6547,150.27,150.22,12.6891]
[1727271725950,0.9226664,150.28,150.22,12.6891]
[1727271726138,6.6551,150.26,150.22,6.0324]
[1727271726769,0.9226664,150.25,150.22,6.0324]
[1727271726962,23.776884,150.27,150.2,32.3721]
[1727271727252,6.6564,150.23,150.19,0.25729419]
[1727271727549,7.5796664,150.22,150.19,0.25729419]
[1727271727763,6.6564,150.23,150.19,0.25729419]
[1727271727937,20.0,150.24,150.19,0.25729419]
[1727271728139,6.6551,150.26,150.2,6.6573]
[1727271728357,6.6557,150.25,150.19,6.91549419]
[1727271728529,1.15495917,150.27,150.19,24.03417819]
[1727271728732,20.0,150.26,150.19,24.03417819]
[1727271728936,26.6551,150.26,150.2,6.6576]
[1727271729649,20.0,150.27,150.21,6.6573]
[1727271729834,20.0,150.27,150.22,6.6568]
[1727271730236,20.0,150.27,150.21,6.6572]
[1727271730460,6.6548,150.27,150.21,6.6572]
[1727271730671,13.57029408,150.31,150.25,6.6555]
[1727271730843,13.57029408,150.31,150.24,17.04499453]
[1727271730844,6.77743968,150.32,150.26,6.655]
[1727271731158,0.9226664,150.31,150.24,16.6394]
[1727271731351,6.6537,150.3,150.23,6.361]
[1727271731551,6.6537,150.3,150.24,6.6559]
[1727271731938,0.9226664,150.29,150.24,6.6559]
[1727271732331,0.12493968,150.32,150.23,23.0017]
[1727271732565,0.12493968,150.32,150.26,6.6551]
[1727271732733,0.12493968,150.32,150.26,6.6549]
[1727271732934,20.0,150.31,150.23,23.0017]
[1727271733141,6.6534,150.3,150.24,6.6555]
[1727271733340,0.12493968,150.32,150.23,23.0017]
[1727271733536,6.653,150.31,150.25,6.6555]
[1727271733941,0.12493968,150.32,150.23,23.0017]
[1727271733942,6.6539,150.29,150.23,29.6577]
[1727271734173,6.6539,150.29,150.24,1.13423614]
[1727271734354,6.6539,150.29,150.24,7.79013614]
[1727271734742,6.6539,150.29,150.24,6.6559]
[1727271735067,0.9226664,150.28,150.23,29.6579]
[1727271735750,6.6538,150.29,150.23,23.0017]
[1727271735935,6.6543,150.28,150.23,23.0017]
[1727271736136,6.6543,150.28,150.23,29.6581]
[1727271736740,6.6547,150.27,150.21,6.6569]
[1727271736959,20.0,150.28,150.23,6.6563]
[1727271737646,20.0,150.31,150.23,6.6563]
[1727271737962,0.9226664,150.3,150.23,6.6563]
[1727271738373,6.6543,150.28,150.23,6.6563]
[1727271738871,6.6546,150.27,150.22,13.2548]
[1727271739249,6.6546,150.28,150.22,13.2547]
[1727271739464,6.6548,150.27,150.22,13.2547]
[1727271741448,0.9226664,150.3,150.22,6.5979]
[1727271741765,13.56881632,150.31,150.25,6.6555]
[1727271741972,1.04760608,150.32,150.25,6.6555]
[1727271742150,0.9226664,150.31,150.25,6.6555]
[1727271742478,0.9226664,150.31,150.24,15.6918]
[1727271742689,6.77743968,150.32,150.27,6.6545]
[1727271743177,7.5756664,150.31,150.26,6.655]
[1727271743373,0.9226664,150.31,150.26,6.655]
[1727271743580,6.77743968,150.32,150.27,6.6546]
[1727271744170,6.6538,150.29,150.25,16.638]
[1727271744372,6.6543,150.28,150.24,15.6918]
[1727271744585,6.6539,150.29,150.25,1.33096893]
[1727271744880,6.6539,150.29,150.24,22.3474]
[1727271745174,0.9226664,150.28,150.24,15.6918]
[1727271745358,6.6547,150.27,150.22,29.8966]
[1727271747071,6.6538,150.29,150.24,6.6559]
[1727271748066,6.6538,150.3,150.24,6.6559]
[1727271748286,27.5768664,150.29,150.24,6.6559]
[1727271748485,0.9226664,150.28,150.24,6.6559]
[1727271748871,0.9226664,150.31,150.24,6.6559]
[1727271749072,6.6542,150.28,150.23,6.6563]
[1727271749267,0.9226664,150.27,150.23,6.6563]
[1727271749473,6.6547,150.27,150.23,6.6563]
[1727271749679,6.6547,150.27,150.22,29.8966]
[1727271749888,0.9226664,150.31,150.22,23.2398]
[1727271750095,6.6543,150.28,150.23,6.6563]
[1727271750293,0.9226664,150.27,150.23,6.6563]
[1727271750475,6.6547,150.27,150.23,6.6563]
[1727271751570,6.6543,150.28,150.23,6.6563]
[1727271751866,6.6547,150.27,150.23,6.6563]
[1727271753897,0.9226664,150.26,150.22,6.5979]
[1727271754107,6.656,150.24,150.22,6.5979]
[1727271754479,6.656,150.24,150.2,22.9094]
[1727271755813,6.6564,150.23,150.2,16.2518]
[1727271756182,44.6995504,150.28,150.2,22.9095]
[1727271756388,6.6556,150.25,150.2,22.9095]
[1727271756813,6.6552,150.26,150.22,6.6569]
[1727271757300,6.6552,150.26,150.21,6.6572]
[1727271757510,6.6557,150.25,150.21,6.6572]
[1727271757680,20.0,150.26,150.23,6.6563]
[1727271757875,20.0,150.28,150.23,6.6563]
[1727271758075,0.12493968,150.32,150.24,6.0325]
[1727271758284,6.6537,150.3,150.25,6.6555]
[1727271759471,6.6544,150.28,150.24,6.0325]
[1727271761012,23.90182368,150.32,150.2,32.8961]
[1727271761184,6.6551,150.26,150.21,6.6572]
[1727271762081,7.5782664,150.25,150.2,46.1153]
[1727271762287,6.6556,150.25,150.2,46.1153]
[1727271762681,0.9226664,150.24,150.2,39.4576]
[1727271762884,6.6562,150.24,150.2,39.4576]
[1727271764494,0.9226664,150.23,150.2,39.4576]
[1727271765205,0.9226664,150.23,150.2,22.8133]
[1727271765411,7.5791664,150.23,150.2,22.8133]
[1727271765611,6.6565,150.23,150.2,22.8133]
[1727271766823,7.5797664,150.22,150.19,0.25729419]
[1727271766986,6.6571,150.22,150.19,0.25729419]
[1727271767190,20.0,150.26,150.19,0.25729419]
[1727271767525,0.9226664,150.25,150.19,0.25729419]
[1727271767698,6.6569,150.22,150.19,0.25729419]
[1727271769530,20.0,150.26,150.19,6.91549419]
[1727271769735,6.656,150.24,150.19,6.91549419]
[1727271769923,7.5791664,150.23,150.19,6.91549419]
[1727271770233,7.5791664,150.23,150.19,0.25729419]
[1727271770234,6.6565,150.23,150.19,0.25729419]
[1727271772221,23.5571772,150.27,150.2,18.37640818]
[1727271772222,6.9196772,150.27,150.2,18.37640818]
[1727271772410,6.6551,150.27,150.22,23.70169453]
[1727271772612,6.6552,150.26,150.22,6.6567]
[1727271772808,6.6552,150.26,150.21,23.2999]
[1727271773004,6.6551,150.26,150.21,23.2999]
[1727271773730,6.6551,150.26,150.21,16.6427]
[1727271774028,20.9226664,150.28,150.21,16.6427]
[1727271774236,6.6554,150.26,150.21,16.6427]
[1727271774411,6.6554,150.26,150.22,10.90529156]
[1727271775436,0.9226664,150.27,150.19,0.25729419]
[1727271775655,6.6565,150.23,150.19,11.16258575]
[1727271775951,6.6565,150.23,150.19,0.25729419]
[1727271776119,0.9226664,150.27,150.19,0.25729419]
[1727271776314,6.657,150.22,150.19,0.25729419]
[1727271776538,6.6564,150.23,150.19,0.25729419]
[1727271780545,0.9226664,150.25,150.19,0.25729419]
[1727271780727,6.6569,150.22,150.19,0.25729419]
[1727271781247,6.6577,150.2,150.19,0.25729419]
[1727271783146,24.71089839,150.24,150.19,0.25729419]
[1727271783355,26.6565,150.23,150.19,0.25729419]
[1727271783555,6.656,150.24,150.19,23.96345142]
[1727271783722,0.9226664,150.26,150.21,17.04825723]
[1727271784131,6.656,150.24,150.19,23.56009419]
[1727271784851,6.6556,150.25,150.2,6.6577]
[1727271785029,6.6552,150.26,150.19,33.95025142]
[1727271785362,6.6552,150.26,150.22,6.6568]
[1727271785363,20.0,150.26,150.22,6.6568]
[1727271785818,27.5778664,150.26,150.22,6.6568]
[1727271786021,6.6561,150.24,150.2,6.6577]
[1727271786251,0.9226664,150.23,150.2,6.6577]
[1727271786551,6.6561,150.24,150.2,6.6577]
[1727271787140,20.0,150.25,150.22,6.6568]
[1727271787342,7.5774664,150.27,150.22,6.6568]
[1727271787538,0.9226664,150.27,150.22,6.6568]
[1727271787745,6.6552,150.26,150.22,6.6568]
[1727271787941,6.6552,150.26,150.2,16.6435]
[1727271788252,7.5785664,150.25,150.2,16.6435]